bitfinex-derivatives/quotes_SOLF0:USTF0_20260204
["timestamp","ask_amount","ask_price","bid_price","bid_amount"]
[1770235018012,78.2245293,94.502,94.383,148.6294]
[1770235018221,78.17669304,94.669,94.441,445.615]
[1770235018420,78.17669304,94.639,94.509,148.4301]
[1770235018709,78.17669304,94.639,94.492,148.4569]
[1770235018909,78.17669304,94.639,94.499,148.4464]
[1770235019104,78.17653967,94.629,94.471,148.4903]
[1770235019308,78.17653967,94.629,94.507,9.5421]
[1770235019706,78.17653967,94.629,94.496,148.4518]
[1770235019914,78.17653967,94.629,94.49,20.10832542]
[1770235020110,78.17653967,94.629,94.476,148.4819]
[1770235020311,78.17653967,94.629,94.474,148.4863]
[1770235020516,78.17653967,94.629,94.507,9.5422]
[1770235021118,87.70643967,94.629,94.486,9.5443]
[1770235021411,73.41225634,94.599,94.406,148.5927]
[1770235021616,73.41225634,94.569,94.419,148.5727]
[1770235021819,73.41225634,94.569,94.406,148.5927]
[1770235022019,73.41225634,94.569,94.46,9.5469]
[1770235022327,73.41225634,94.569,94.415,148.5786]
[1770235022515,73.41225634,94.569,94.438,9.5491]
[1770235022708,73.41225634,94.567,94.386,148.6239]
[1770235022915,148.2974,94.595,94.368,148.6533]
[1770235022916,73.41225634,94.539,94.368,148.6533]
[1770235023113,73.41225634,94.529,94.396,9.5534]
[1770235025017,73.41225634,94.529,94.35,20.10832542]
[1770235025018,73.5783935,94.527,94.377,9.5553]
[1770235025218,73.5783935,94.509,94.377,9.5553]
[1770235025613,73.5783935,94.509,94.399,9.553]
[1770235027921,73.5783935,94.509,94.36,178.81113511]
[1770235027922,73.5783935,94.509,94.38,9.5549]
[1770235028221,148.3651,94.552,94.38,9.5549]
[1770235028222,73.67106664,94.506,94.38,9.5549]
[1770235028421,73.67106664,94.506,94.362,9.5568]
[1770235028819,73.67106664,94.506,94.32,30.14553511]
[1770235028820,73.67106664,94.479,94.32,30.14553511]
[1770235029527,73.67106664,94.477,94.361,9.5569]
[1770235029725,73.67106664,94.477,94.299,9.50754821]
[1770235029924,73.67106664,94.477,94.345,423.84624573]
[1770235030517,73.5692072,94.445,94.345,423.84624573]
[1770235030821,73.5692072,94.439,94.329,9.5601]
[1770235031018,148.4858,94.475,94.28,7.88527218]
[1770235031019,73.5692072,94.418,94.28,7.88527218]
[1770235031223,73.5692072,94.399,94.281,8.00022434]
[1770235031421,73.5692072,94.399,94.28,7.88527218]
[1770235031818,73.5692072,94.399,94.309,9.5622]
[1770235032426,73.5692072,94.399,94.326,9.5604]
[1770235033325,73.5692072,94.399,94.339,9.5591]
[1770235034023,73.5692072,94.399,94.27,148.8076]
[1770235034024,73.5692072,94.399,94.348,9.5582]
[1770235035023,73.54376498,94.431,94.32,30.2080681]
[1770235035222,73.54376498,94.431,94.321,7.98313703]
[1770235035426,73.40080951,94.415,94.334,9.5596]
[1770235035833,73.40080951,94.415,94.278,9.50754821]
[1770235036034,73.40080951,94.415,94.279,7.99775571]
[1770235036233,73.40080951,94.415,94.28,7.99775571]
[1770235036434,30.2080681,94.44,94.26,30.2080681]
[1770235036435,73.40080951,94.4,94.319,9.5611]
[1770235036637,73.40080951,94.4,94.278,148.7942]
[1770235036836,73.40080951,94.4,94.279,8.00124974]
[1770235037143,73.40080951,94.396,94.28,8.00124974]
[1770235037443,73.40080951,94.396,94.281,8.00124974]
[1770235037636,73.38554351,94.38,94.301,9.563]
[1770235037833,73.38554351,94.38,94.247,9.50754821]
[1770235038140,73.38554351,94.38,94.246,19.1371]
[1770235038141,73.38554351,94.38,94.248,7.99999194]
[1770235038443,30.2080681,94.42,94.246,167.9818]
[1770235038444,73.38554351,94.364,94.249,7.99999194]
[1770235038738,73.38554351,94.364,94.25,7.99999194]
[1770235039042,73.38554351,94.364,94.298,9.5633]
[1770235039237,73.38554351,94.364,94.299,2.65438986]
[1770235039533,73.38554351,94.364,94.3,2.65438986]
[1770235039733,73.38554351,94.364,94.313,9.5617]
[1770235039934,73.35050987,94.389,94.314,2.65438986]
[1770235040134,73.35050987,94.389,94.315,2.65438986]
[1770235040335,73.35050987,94.389,94.316,2.65438986]
[1770235040531,73.35050987,94.389,94.328,9.5602]
[1770235040937,73.35050987,94.389,94.26,30.2080681]
[1770235040938,73.35050987,94.389,94.279,148.7936]
[1770235041142,73.35050987,94.389,94.28,10.64671096]
[1770235041338,73.35050987,94.389,94.281,10.64671096]
[1770235041643,73.35050987,94.389,94.336,9.5594]
[1770235043744,73.35050987,94.389,94.345,9.5585]
[1770235043945,73.35050987,94.389,94.293,148.7714]
[1770235044137,73.35050987,94.389,94.294,10.65881426]
[1770235044338,73.35050987,94.389,94.35,9.558]
[1770235044936,73.35050987,94.389,94.34,9.5591]
[1770235045141,73.35050987,94.389,94.28,31.8]
[1770235045442,73.35050987,94.389,94.283,148.7859]
[1770235045637,73.35050987,94.389,94.284,10.66287177]
[1770235045942,73.35050987,94.389,94.294,19.1274]
[1770235046145,73.35050987,94.389,94.295,10.66287177]
[1770235046345,73.35050987,94.389,94.296,10.66287177]
[1770235046544,73.35050987,94.389,94.297,10.66287177]
[1770235046744,73.35050987,94.389,94.298,10.66512626]
[1770235046945,73.35050987,94.389,94.299,10.66512626]
[1770235047141,73.35050987,94.389,94.3,29.79142626]
[1770235047440,73.35050987,94.389,94.301,10.66512626]
[1770235047645,73.35050987,94.389,94.302,10.66512626]
[1770235047846,73.35050987,94.389,94.303,10.66512626]
[1770235048046,73.14943654,94.414,94.312,148.7405]
[1770235048247,73.14943654,94.414,94.313,10.66512626]
[1770235048545,73.14943654,94.414,94.322,19.1217]
[1770235048736,73.14943654,94.414,94.323,2.65366094]
[1770235048938,73.14943654,94.414,94.324,2.65366094]
[1770235049139,73.14943654,94.414,94.372,9.5558]
[1770235050350,73.14943654,94.414,94.38,9.5559]
[1770235050547,73.14943654,94.414,94.327,19.1226]
[1770235050748,73.14943654,94.414,94.328,2.6529519]
[1770235050947,73.14943654,94.414,94.329,2.6529519]
[1770235051151,73.14943654,94.414,94.33,2.6529519]
[1770235051344,73.14943654,94.414,94.331,2.6529519]
[1770235051546,73.14943654,94.414,94.332,2.6529519]
[1770235051849,73.14943654,94.414,94.333,2.6529519]
[1770235052049,73.14943654,94.414,94.382,9.5557]
[1770235052348,73.14943654,94.414,94.329,19.1222]
[1770235052554,73.14943654,94.414,94.33,10.69098058]
[1770235052755,73.14943654,94.414,94.331,10.69098058]
[1770235052951,73.14943654,94.414,94.332,10.69098058]
[1770235053156,73.14943654,94.414,94.333,10.69098058]
[1770235053355,73.14943654,94.414,94.334,10.69098058]
[1770235053552,73.14943654,94.414,94.335,10.69457183]
[1770235053755,73.14943654,94.414,94.366,9.5574]
[1770235054352,58.68301433,94.412,94.357,9.5583]
[1770235054555,58.68301433,94.412,94.314,19.1252]
[1770235054857,57.35647995,94.39,94.315,8.04117367]
[1770235055056,57.35647995,94.39,94.286,19.1309]
[1770235055658,19.102,94.43,94.286,19.1309]
[1770235055659,57.35807932,94.378,94.286,19.1309]
[1770235056254,57.35807932,94.371,94.262,19.1359]
[1770235056449,57.35807932,94.359,94.263,7.79748824]
[1770235056648,57.35807932,94.359,94.23,7.88422049]
[1770235056856,57.35807932,94.331,94.266,9.5675]
[1770235057053,57.35807932,94.331,94.213,148.9121]
[1770235057353,57.35807932,94.331,94.224,7.80164711]
[1770235057657,57.40257443,94.353,94.235,148.8773]
[1770235057855,57.40257443,94.353,94.236,7.80164711]
[1770235058052,57.40257443,94.339,94.21,7.88422049]
[1770235058252,57.40257443,94.312,94.257,9.5684]
[1770235058952,57.40257443,94.312,94.247,9.5694]
[1770235059853,7.88422049,94.32,94.194,19.1497]
[1770235059854,57.39465791,94.309,94.194,19.1497]
[1770235060052,57.39465791,94.309,94.222,19.1441]
[1770235060253,57.39465791,94.309,94.23,7.88422049]
[1770235060458,57.39465791,94.309,94.222,19.1441]
[1770235060653,57.39465791,94.309,94.21,7.88422049]
[1770235060954,57.39465791,94.309,94.257,9.5684]
[1770235062361,57.39465791,94.309,94.23,7.88422049]
[1770235062556,57.39465791,94.309,94.198,9.50754821]
[1770235062763,57.39465791,94.309,94.262,9.5669]
[1770235063465,57.39465791,94.309,94.252,9.568]
[1770235063665,57.39465791,94.309,94.21,7.88422049]
[1770235064065,57.55808824,94.295,94.242,9.569]
[1770235064260,57.55808824,94.295,94.21,7.88422049]
[1770235064458,57.55808824,94.295,94.224,7.78450962]
[1770235064763,57.55808824,94.295,94.225,7.78450962]
[1770235064963,53.66583343,94.283,94.196,9.50754821]
[1770235065163,53.66583343,94.283,94.17,7.88422049]
[1770235065358,53.66583343,94.283,94.19,7.88422049]
[1770235066465,53.66583343,94.283,94.191,2.6562351]
[1770235066769,53.66583343,94.283,94.192,2.6562351]
[1770235066963,53.66583343,94.283,94.193,2.6562351]
[1770235067165,53.66583343,94.283,94.194,2.6562351]
[1770235067365,53.66583343,94.283,94.195,2.6562351]
[1770235067568,53.66583343,94.283,94.196,2.6562351]
[1770235067768,53.66583343,94.283,94.197,2.6562351]
[1770235068062,53.66583343,94.283,94.198,2.6562351]
[1770235068263,53.66583343,94.283,94.199,2.6562351]
[1770235068569,53.66583343,94.283,94.2,2.6562351]
[1770235068770,53.66583343,94.283,94.201,2.6562351]
[1770235068971,53.66583343,94.283,94.226,9.5706]
[1770235069172,53.66583343,94.283,94.19,7.88422049]
[1770235069369,53.58019656,94.329,94.23,7.88422049]
[1770235069569,53.57116282,94.316,94.21,7.88422049]
[1770235070273,53.57116282,94.301,94.188,9.50754821]
[1770235070471,53.57116282,94.301,94.19,7.88422049]
[1770235070865,53.57116282,94.301,94.19,17.3917687]
[1770235071066,53.57116282,94.301,94.19,7.88422049]
[1770235071465,7.88422049,94.32,94.195,19.1475]
[1770235071466,53.57116282,94.297,94.195,19.1475]
[1770235071963,53.55952884,94.286,94.233,9.5699]
[1770235072368,53.55952884,94.283,94.233,9.5699]
[1770235072966,53.55952884,94.283,94.241,9.569]
[1770235073872,53.55952884,94.283,94.231,9.5701]
[1770235074475,53.56254609,94.281,94.219,9.5713]
[1770235075768,53.53832928,94.266,94.219,9.5713]
[1770235075971,53.53832928,94.266,94.209,9.5723]
[1770235076477,53.53832928,94.264,94.209,9.5723]
[1770235077074,53.53832928,94.26,94.209,9.5723]
[1770235077282,53.53832928,94.26,94.196,9.5736]
[1770235077577,53.53832928,94.26,94.168,19.153]
[1770235077776,53.53004116,94.255,94.168,19.153]
[1770235077976,53.53004116,94.255,94.207,9.5725]
[1770235079177,53.53004116,94.255,94.215,9.5717]
[1770235079478,53.52989685,94.275,94.19,7.88422049]
[1770235079770,53.52989685,94.275,94.222,9.571]
[1770235080174,53.52989685,94.275,94.19,7.88422049]
[1770235080376,53.52989685,94.275,94.191,19.1484]
[1770235080574,53.52989685,94.275,94.16,17.3917687]
[1770235080770,53.52989685,94.275,94.16,7.88422049]
[1770235080969,53.59958494,94.273,94.18,7.88422049]
[1770235081671,53.59958494,94.273,94.185,19.1497]
[1770235082670,53.59958494,94.273,94.2,7.88422049]
[1770235083071,53.6053768,94.329,94.2,7.88422049]
[1770235083270,53.6053768,94.329,94.203,31.8]
[1770235083672,53.73221624,94.31,94.202,19.1461]
[1770235084272,53.73221624,94.454,94.305,148.7524]
[1770235084579,53.73221624,94.499,94.36,7.88422049]
[1770235085076,53.73221624,94.479,94.372,9.5558]
[1770235085271,53.73221624,94.479,94.373,8.31062947]
[1770235085473,148.4393,94.514,94.323,9.59567985]
[1770235085474,53.73221624,94.459,94.323,9.59567985]
[1770235085669,7.88422049,94.44,94.324,8.31001625]
[1770235085874,53.8636681,94.439,94.325,8.31001625]
[1770235086080,53.8636681,94.419,94.326,8.31001625]
[1770235086280,53.8636681,94.419,94.327,8.31001625]
[1770235086476,53.8636681,94.469,94.37,7.87856524]
[1770235086782,53.8636681,94.469,94.371,8.31001625]
[1770235087073,53.8636681,94.469,94.39,7.87856524]
[1770235087479,53.8636681,94.469,94.391,8.28024621]
[1770235087673,53.8636681,94.469,94.392,8.28024621]
[1770235087880,53.87678767,94.527,94.41,7.87856524]
[1770235088074,53.87678767,94.527,94.411,8.28024621]
[1770235088271,53.87678767,94.527,94.41,7.87856524]
[1770235088576,53.87678767,94.527,94.415,9.5524]
[1770235088776,53.87678767,94.527,94.41,7.87856524]
[1770235089385,53.87678767,94.527,94.418,9.5521]
[1770235089577,53.80462268,94.509,94.38,7.87856524]
[1770235089774,53.80462268,94.509,94.381,8.26840309]
[1770235090080,53.80462268,94.509,94.38,7.87856524]
[1770235090479,53.80462268,94.509,94.399,9.554]
[1770235091878,53.80462268,94.509,94.414,9.5525]
[1770235092579,53.80462268,94.509,94.428,9.551]
[1770235094280,53.80462268,94.509,94.414,9.5525]
[1770235094682,53.85086288,94.499,94.38,7.87856524]
[1770235095279,53.85086288,94.495,94.38,7.87856524]
[1770235095479,53.85086288,94.495,94.36,7.87856524]
[1770235096377,53.80684861,94.491,94.401,9.5538]
[1770235096780,53.80684861,94.491,94.38,7.87856524]
[1770235097681,53.80684861,94.491,94.381,31.8]
[1770235097877,53.8611535,94.577,94.42,7.87856524]
[1770235098087,53.8611535,94.577,94.44,7.87856524]
[1770235098286,53.8611535,94.54,94.467,9.5471]
[1770235098481,53.8611535,94.54,94.42,7.87856524]
[1770235098886,53.81502501,94.527,94.456,9.5483]
[1770235099086,53.81502501,94.527,94.42,7.87856524]
[1770235099281,53.81502501,94.527,94.4,7.87856524]
[1770235099481,53.81502501,94.51,94.4,7.87856524]
[1770235100581,53.81502501,94.51,94.42,7.87856524]
[1770235100880,53.81502501,94.51,94.44,7.87856524]
[1770235101094,7.87856524,94.59,94.46,7.87856524]
[1770235101885,7.87856524,94.6,94.508,9.543]
[1770235102285,9.5357,94.581,94.497,9.5441]
[1770235102482,7.87856524,94.58,94.497,9.5441]
[1770235102984,45.2430389,94.549,94.43,26.98026524]
[1770235103779,44.89222052,94.534,94.461,9.5478]
[1770235105177,44.89222052,94.534,94.471,9.5467]
[1770235106288,44.89222052,94.534,94.481,9.5457]
[1770235110288,44.89222052,94.534,94.47,9.5469]
[1770235110490,44.89222052,94.534,94.41,7.87856524]
[1770235110988,44.60072131,94.522,94.465,9.5473]
[1770235111489,44.60072131,94.522,94.412,19.1054]
[1770235111690,44.60072131,94.522,94.462,9.5476]
[1770235111891,44.60072131,94.522,94.412,19.1054]
[1770235112184,7.87856524,94.54,94.412,19.1054]
[1770235112185,44.44556519,94.509,94.451,9.5487]
[1770235114392,44.44556519,94.509,94.412,19.1054]
[1770235114584,44.44556519,94.509,94.41,7.87856524]
[1770235114980,44.44556519,94.509,94.478,9.546]
[1770235115389,44.44556519,94.509,94.419,19.1041]
[1770235115583,44.44556519,94.509,94.389,31.8]
[1770235115785,44.44556519,94.509,94.4,7.87856524]
[1770235116181,7.87856524,94.54,94.449,9.5489]
[1770235116182,39.57270319,94.505,94.449,9.5489]
[1770235116588,39.57270319,94.505,94.401,19.1077]
[1770235116785,49.11610319,94.505,94.447,9.5491]
[1770235117584,39.57270319,94.505,94.457,9.5482]
[1770235119290,39.57270319,94.505,94.466,9.5472]
[1770235119484,39.57270319,94.505,94.42,7.87856524]
[1770235120493,39.57270319,94.505,94.472,9.5466]
[1770235120886,39.57270319,94.505,94.423,19.1032]
[1770235121593,39.57270319,94.505,94.464,9.5475]
[1770235123492,39.57270319,94.505,94.4,7.87856524]
[1770235124094,34.63980107,94.503,94.452,9.5487]
[1770235125497,34.60390121,94.498,94.452,9.5487]
[1770235125692,34.60390121,94.498,94.463,9.5475]
[1770235125894,34.60390121,94.498,94.42,7.87856524]
[1770235125895,18.35590121,94.498,94.42,7.87856524]
[1770235126097,9.541,94.528,94.42,7.87856524]
[1770235126596,7.87856524,94.54,94.423,19.1032]
[1770235127098,7.87856524,94.54,94.41,7.87856524]
[1770235127294,7.87856524,94.54,94.411,7.81693427]
[1770235127493,7.87856524,94.54,94.412,7.81693427]
[1770235127701,9.5435,94.504,94.413,7.81693427]
[1770235127898,9.5435,94.504,94.414,7.81693427]
[1770235128099,9.5435,94.504,94.397,31.83]
[1770235128100,26.42548501,94.503,94.415,7.81693427]
[1770235128290,26.42548501,94.503,94.416,7.81693427]
[1770235128600,26.42548501,94.503,94.417,7.81693427]
[1770235128799,26.42548501,94.503,94.418,7.81693427]
[1770235129100,26.39322544,94.497,94.419,7.81693427]
[1770235129398,26.39322544,94.497,94.42,7.81693427]
[1770235129598,26.39322544,94.497,94.421,7.81693427]
[1770235129801,26.69500349,94.494,94.438,9.5501]
[1770235129994,26.69500349,94.494,94.401,9.4493268]
[1770235130201,26.69500349,94.494,94.38,7.87856524]
[1770235130202,26.69500349,94.494,94.402,7.86065987]
[1770235130390,26.69500349,94.465,94.41,9.5529]
[1770235130594,26.69500349,94.465,94.381,9.4493268]
[1770235130795,26.69500349,94.465,94.382,7.86597151]
[1770235131103,26.670261,94.463,94.409,9.553]
[1770235131301,26.670261,94.463,94.41,7.86597151]
[1770235131504,27.7654164,94.461,94.411,7.86597151]
[1770235131704,27.7654164,94.461,94.381,9.4493268]
[1770235132004,27.7654164,94.459,94.382,7.88162456]
[1770235132199,27.7654164,94.484,94.383,7.88162456]
[1770235132398,27.7654164,94.484,94.36,7.87856524]
[1770235132594,27.7654164,94.484,94.335,12.66202755]
[1770235132595,27.76232116,94.437,94.348,9.4493268]
[1770235132898,27.76232116,94.437,94.34,7.87856524]
[1770235133100,27.76232116,94.437,94.379,9.556]
[1770235133299,27.76232116,94.437,94.34,7.87856524]
[1770235133706,9.5473,94.467,94.409,9.553]
[1770235133900,7.87856524,94.5,94.381,13.78415074]
[1770235134404,7.87856524,94.5,94.419,9.552]
[1770235134405,9.5462,94.477,94.419,9.552]
[1770235134606,19.0857,94.511,94.381,13.78415074]
[1770235134804,7.87856524,94.5,94.381,13.78415074]
[1770235135604,26.68182043,94.475,94.42,9.5519]
[1770235136214,26.68182043,94.475,94.381,13.78415074]
[1770235136506,26.68182043,94.475,94.405,16.04294099]
[1770235136908,26.68182043,94.475,94.426,9.5513]
[1770235137106,26.68182043,94.475,94.38,7.87856524]
[1770235137107,26.68182043,94.475,94.38,17.0838956]
[1770235137409,26.68182043,94.47,94.414,9.5525]
[1770235137606,26.68182043,94.47,94.38,17.0838956]
[1770235138002,26.68182043,94.469,94.415,9.5524]
[1770235138808,36.22922043,94.466,94.405,9.5534]
[1770235139002,36.22922043,94.466,94.38,17.0838956]
[1770235139399,29.43934804,94.462,94.405,9.5535]
[1770235139906,9.5481,94.458,94.405,9.5535]
[1770235140106,29.43934804,94.457,94.392,9.5548]
[1770235140299,29.43934804,94.457,94.38,17.0838956]
[1770235140504,29.43934804,94.457,94.416,9.5523]
[1770235141106,29.43934804,94.457,94.38,17.0838956]
[1770235141701,29.43934804,94.457,94.403,9.5536]
[1770235141900,29.43934804,94.457,94.38,17.0838956]
[1770235142209,29.43934804,94.442,94.39,9.555]
[1770235142610,29.43934804,94.442,94.38,17.0838956]
[1770235142807,29.43934804,94.442,94.398,9.5541]
[1770235143105,29.43934804,94.439,94.339,9.4493268]
[1770235143299,29.43934804,94.439,94.337,9.5603]
[1770235143504,29.43934804,94.439,94.33,24.17035899]
[1770235143906,9.5538,94.402,94.346,9.5594]
[1770235144407,9.5517,94.423,94.331,25.2000717]
[1770235144613,29.43934804,94.422,94.331,25.2000717]
[1770235145007,29.43934804,94.391,94.311,26.1409664]
[1770235145209,29.43934804,94.391,94.291,26.1409664]
[1770235145511,29.43934804,94.37,94.291,26.1409664]
[1770235146106,29.43934804,94.367,94.291,26.1409664]
[1770235146306,29.43934804,94.367,94.27,27.30789657]
[1770235146810,7.87856524,94.38,94.27,27.30789657]
[1770235146811,29.43934804,94.351,94.281,9.5669]
[1770235147314,29.43934804,94.349,94.281,9.5659]
[1770235147509,29.43934804,94.349,94.281,28.22464984]
[1770235149214,29.43934804,94.349,94.295,9.5646]
[1770235149414,29.43934804,94.349,94.281,28.22464984]
[1770235149613,29.43934804,94.349,94.261,28.22464984]
[1770235149818,29.43934804,94.324,94.262,9.5679]
[1770235150010,29.43934804,94.324,94.261,28.22464984]
[1770235150419,29.43934804,94.324,94.261,37.79264984]
[1770235150607,29.43934804,94.324,94.227,28.22464984]
[1770235150807,29.43934804,94.324,94.205,28.22464984]
[1770235151111,29.43934804,94.307,94.205,28.22464984]
[1770235151316,29.43934804,94.307,94.2,7.89514292]
[1770235151317,29.43934804,94.307,94.221,28.22464984]
[1770235152116,29.43934804,94.306,94.221,28.22464984]
[1770235152718,29.43934804,94.304,94.236,9.5706]
[1770235152916,29.43934804,94.304,94.221,28.22464984]
[1770235153716,29.43934804,94.304,94.237,9.5704]
[1770235154417,29.43934804,94.304,94.249,9.5692]
[1770235154815,29.43934804,94.359,94.237,28.22464984]
[1770235155209,29.43934804,94.337,94.26,9.5681]
[1770235155414,29.43934804,94.337,94.237,28.22464984]
[1770235156019,29.43934804,94.329,94.259,9.5682]
[1770235156211,29.43934804,94.329,94.241,28.22464984]
[1770235156620,29.43934804,94.326,94.256,9.5685]
[1770235156818,29.43934804,94.326,94.241,28.22464984]
[1770235157017,9.7492292,94.43,94.213,148.9124]
[1770235157018,29.43934804,94.347,94.261,28.22464984]
[1770235157619,29.43934804,94.347,94.289,9.5651]
[1770235157816,29.43934804,94.347,94.261,28.22464984]
[1770235158815,29.43934804,94.347,94.271,28.22464984]
[1770235159418,29.43934804,94.367,94.29,7.89514292]
[1770235159913,29.43934804,94.367,94.303,9.5638]
[1770235160918,38.99694804,94.364,94.303,9.5638]
[1770235161127,29.43934804,94.363,94.303,9.5638]
[1770235161316,29.43934804,94.363,94.312,9.5628]
[1770235161916,29.43934804,94.363,94.29,28.22464984]
[1770235161917,29.43934804,94.363,94.321,9.5619]
[1770235163116,9.5529,94.401,94.335,9.5596]
[1770235163317,7.89514292,94.44,94.322,28.22464984]
[1770235163318,29.43934804,94.4,94.322,28.22464984]
[1770235163522,29.43934804,94.4,94.301,28.22464984]
[1770235163719,37.90034438,94.393,94.336,9.5595]
[1770235163918,37.90034438,94.393,94.321,39.30747407]
[1770235165116,37.90034438,94.413,94.341,39.30747407]
[1770235165716,37.90034438,94.413,94.355,9.5575]
[1770235166220,9.5507,94.424,94.359,39.30747407]
[1770235167323,37.90034438,94.423,94.359,39.30747407]
[1770235167622,9.551,94.421,94.359,39.30747407]
[1770235168424,47.45134438,94.421,94.359,39.30747407]
[1770235168824,47.45134438,94.421,94.36,9.557]
[1770235169928,37.90034438,94.417,94.338,39.30747407]
[1770235170623,37.90034438,94.417,94.341,39.30747407]
[1770235171027,37.90034438,94.417,94.367,9.5563]
[1770235171221,37.90034438,94.417,94.341,39.30747407]
[1770235171720,37.90034438,94.415,94.357,9.5573]
[1770235171919,37.90034438,94.415,94.341,39.30747407]
[1770235172322,9.5533,94.398,94.341,39.30747407]
[1770235172526,37.90034438,94.398,94.336,9.5594]
[1770235172723,37.90034438,94.398,94.32,7.89514292]
[1770235172724,37.90034438,94.398,94.321,39.30747407]
[1770235173419,9.555,94.381,94.321,39.30747407]
[1770235173619,37.90034438,94.398,94.321,39.30747407]
[1770235174728,9.554,94.39,94.331,9.5599]
[1770235174923,37.90034438,94.39,94.321,39.30747407]
[1770235176133,37.90034438,94.386,94.329,9.5601]
[1770235176729,37.90034438,94.373,94.302,39.30747407]
[1770235177131,9.5573,94.358,94.302,39.30747407]
[1770235178029,37.90034438,94.352,94.287,9.5644]
[1770235178428,37.90034438,94.352,94.283,39.30747407]
[1770235179434,37.90034438,94.376,94.283,39.30747407]
[1770235180734,37.90034438,94.37,94.318,9.5612]
[1770235180935,37.90034438,94.37,94.301,39.30747407]
[1770235181433,9.5563,94.368,94.301,39.30747407]
[1770235181634,37.90034438,94.391,94.301,39.30747407]
[1770235181834,37.90034438,94.379,94.321,9.561]
[1770235182030,37.90034438,94.42,94.322,39.30747407]
[1770235182233,37.90034438,94.42,94.3,7.89514292]
[1770235182234,37.90034438,94.42,94.303,39.30747407]
[1770235182636,148.5175,94.455,94.303,39.30747407]
[1770235182637,37.90034438,94.409,94.303,39.30747407]
[1770235187741,9.7492292,94.498,94.381,39.30747407]
[1770235187940,148.4161,94.519,94.381,39.30747407]
[1770235188237,148.4161,94.519,94.315,12.96037593]
[1770235188238,7.89514292,94.46,94.341,39.30747407]
[1770235188440,148.4527,94.496,94.341,39.30747407]
[1770235188441,7.89514292,94.44,94.341,39.30747407]
[1770235189335,9.5491,94.439,94.341,39.30747407]
[1770235189840,37.90034438,94.438,94.341,39.30747407]
[1770235190538,37.90034438,94.427,94.303,39.30747407]
[1770235190735,37.90034438,94.419,94.303,39.30747407]
[1770235191338,37.90034438,94.384,94.303,39.30747407]
[1770235192240,37.90034438,94.382,94.281,39.30747407]
[1770235193144,9.556,94.37,94.281,39.30747407]
[1770235193445,37.90034438,94.369,94.281,39.30747407]
[1770235193644,37.90034438,94.342,94.259,39.30747407]
[1770235194245,46.77617941,94.34,94.259,39.30747407]
[1770235194944,46.77617941,94.34,94.259,48.87467407]
[1770235197548,46.77617941,94.34,94.27,58.85312719]
[1770235199045,48.54318849,94.359,94.281,48.46333634]
[1770235200648,48.54318849,94.359,94.253,48.46333634]
[1770235201156,48.54318849,94.357,94.253,48.46333634]
[1770235201854,48.54318849,94.353,94.275,48.46333634]
[1770235202352,48.54318849,94.353,94.277,9.5654]
[1770235202748,48.54318849,94.353,94.277,58.02873634]
[1770235202956,180.77850269,94.422,94.25,7.89514292]
[1770235202957,48.54318849,94.372,94.291,48.46333634]
[1770235203143,7.89514292,94.42,94.311,48.46333634]
[1770235203144,48.54318849,94.419,94.311,48.46333634]
[1770235203348,48.54318849,94.387,94.289,9.5642]
[1770235203554,48.54318849,94.387,94.289,58.02753634]
[1770235203755,9.5585,94.346,94.289,48.46333634]
[1770235203952,48.54318849,94.346,94.289,48.46333634]
[1770235204653,48.54318849,94.367,94.291,48.46333634]
[1770235205046,48.54318849,94.365,94.284,9.76285066]
[1770235205246,48.54318849,94.365,94.272,48.46333634]
[1770235205853,48.54318849,94.352,94.272,48.46333634]
[1770235206146,48.54318849,94.352,94.254,48.46333634]
[1770235206857,48.54318849,94.349,94.233,48.46333634]
[1770235207049,9.5612,94.319,94.233,48.46333634]
[1770235207250,48.54318849,94.318,94.233,48.46333634]
[1770235207651,48.54318849,94.318,94.238,48.46333634]
[1770235207851,48.54318849,94.369,94.245,48.46333634]
[1770235208053,48.54318849,94.369,94.247,48.46333634]
[1770235208357,48.54318849,94.348,94.258,48.46333634]
[1770235209254,48.54318849,94.345,94.258,48.46333634]
[1770235210157,48.54318849,94.341,94.261,9.567]
[1770235210554,48.54318849,94.341,94.258,48.46333634]
[1770235210756,48.54318849,94.338,94.258,48.46333634]
[1770235211258,48.54318849,94.338,94.26,48.46333634]
[1770235211456,48.54318849,94.369,94.27,48.46333634]
[1770235211655,48.54318849,94.369,94.281,48.46333634]
[1770235211857,48.54318849,94.369,94.28,17.68784577]
[1770235211858,48.54318849,94.369,94.286,48.46333634]
[1770235212454,48.54318849,94.369,94.296,9.5635]
[1770235212654,48.54318849,94.369,94.296,48.46333634]
[1770235213254,48.54318849,94.369,94.297,9.78878346]
[1770235213462,48.54318849,94.369,94.297,48.46333634]
[1770235214466,48.54318849,94.369,94.298,9.5633]
[1770235214671,48.54318849,94.369,94.298,58.02663634]